bitfinex-derivatives/quotes_ETHF0:USTF0_20250404
["timestamp","ask_amount","ask_price","bid_price","bid_amount"]
[1743768431745,0.00843359,1780.7,1780.4,4.46133359]
[1743768431951,0.00843359,1780.7,1780.4,45.26133359]
[1743768432457,0.00843359,1780.7,1780.4,4.46133359]
[1743768432658,1.13171359,1780.7,1780.6,1.1233]
[1743768433052,1.12333,1780.6,1780.5,1.12334]
[1743768433252,1.5129,1780.6,1780.4,5.45480359]
[1743768433452,1.5129,1780.6,1780.5,1.12336]
[1743768433658,1.5129,1780.6,1780.5,2.51706]
[1743768434357,0.00843359,1780.7,1780.6,1.1233]
[1743768435760,1.41383359,1780.7,1780.6,1.1233]
[1743768438563,1.41383359,1780.7,1780.4,7.87721359]
[1743768438564,1.12336,1780.5,1780.4,0.00843359]
[1743768439063,4.33116,1780.5,1780.4,0.00843359]
[1743768439263,2.80864,1780.4,1780.1,1.1236]
[1743768439561,1.12362,1780.2,1780.1,1.1236]
[1743768439766,1.12368,1780.0,1779.9,36.51972]
[1743768439964,0.7234,1780.5,1779.9,41.362]
[1743768440153,0.7234,1780.5,1780.4,1.12343]
[1743768440360,0.00843359,1780.7,1780.6,1.1233]
[1743768440561,0.00843359,1780.7,1780.6,4.3311]
[1743768440962,0.00843359,1780.7,1780.6,6.8311]
[1743768441162,1.12282,1781.4,1780.7,2.8081]
[1743768441363,1.12282,1781.4,1781.1,1.12299]
[1743768441364,1.4081,1781.2,1781.1,1.12299]
[1743768441860,1.12343,1780.5,1780.4,1.12342]
[1743768442065,1.12338,1780.5,1780.4,1.1234]
[1743768442265,4.319,1780.8,1780.7,1.12324]
[1743768442266,2.8329,1780.8,1780.7,1.12324]
[1743768442466,0.00843359,1780.6,1780.5,1.12336]
[1743768443062,1.13178359,1780.6,1780.5,1.12336]
[1743768443262,1.13173359,1780.6,1780.5,1.12336]
[1743768443458,0.00843359,1780.6,1780.4,1.12339]
[1743768443663,1.3902,1780.5,1780.4,1.12343]
[1743768443862,1.12343,1780.4,1780.3,46.25087359]
[1743768444163,1.12343,1780.4,1780.3,0.00843359]
[1743768444363,1.3902,1780.5,1780.4,1.12343]
[1743768444565,0.00843359,1780.6,1780.5,1.12336]
[1743768444765,0.00843359,1780.6,1780.5,2.66466]
[1743768445268,1.13173359,1780.6,1780.5,1.12336]
[1743768445469,1.52563359,1780.6,1780.3,4.32643359]
[1743768445671,1.12343,1780.4,1780.3,0.00843359]
[1743768445865,1.12343,1780.4,1780.3,1.13188359]
[1743768446472,1.12343,1780.4,1780.3,0.00843359]
[1743768447167,4.73343359,1780.6,1780.3,1.13188359]
[1743768447375,1.12336,1780.5,1780.4,1.12338]
[1743768447576,1.4609,1780.5,1780.4,1.12343]
[1743768448067,0.00843359,1780.6,1780.5,1.12336]
[1743768448572,1.12336,1780.5,1780.4,1.12343]
[1743768449467,1.12343,1780.4,1780.3,0.00843359]
[1743768449662,4.33123,1780.4,1780.3,0.00843359]
[1743768451068,1.12374,1779.9,1779.8,3.2078]
[1743768451269,1.12374,1779.9,1779.8,1.10408109]
[1743768451870,1.12381,1779.8,1779.7,35.391]
[1743768452173,1.4557,1779.8,1779.7,77.31484]
[1743768452367,1.4557,1779.8,1779.7,78.73144]
[1743768453069,1.4557,1779.8,1779.6,0.00843359]
[1743768453274,1.12425,1779.1,1779.0,5.966]
[1743768453490,3.2078,1779.2,1778.9,41.92435]
[1743768453667,2.57341,1779.0,1778.9,40.8]
[1743768453867,1.4491,1779.0,1778.7,5.44148]
[1743768454063,1.4491,1779.0,1778.7,5.4415]
[1743768454264,1.12444,1778.8,1778.7,5.4415]
[1743768454473,1.12444,1778.8,1778.7,1.13293359]
[1743768455177,1.45753359,1779.0,1778.7,1.13293359]
[1743768455178,4.66533359,1779.0,1778.7,0.00843359]
[1743768455671,5.78967359,1779.0,1778.8,1.12444]
[1743768455876,1.12438,1778.9,1778.8,1.12441]
[1743768456069,1.4491,1778.9,1778.7,1.13289359]
[1743768456269,1.12444,1778.8,1778.7,0.00843359]
[1743768456566,2.57352,1778.9,1778.7,1.13293359]
[1743768456769,1.12444,1778.8,1778.7,0.00843359]
[1743768457074,2.66544,1778.8,1778.7,0.00843359]
[1743768459677,1.541,1778.8,1778.7,1.13293359]
[1743768461775,0.00843359,1779.0,1778.9,1.12438]
[1743768461988,1.50303359,1779.0,1778.9,41.92438]
[1743768462573,0.00843359,1779.0,1778.9,41.92438]
[1743768462772,0.00843359,1779.0,1778.9,45.13218]
[1743768462975,0.00843359,1779.0,1778.9,47.63218]
[1743768463982,0.00843359,1779.0,1778.9,45.13218]
[1743768464279,0.00843359,1779.0,1778.9,41.92438]
[1743768464676,0.00843359,1779.0,1778.9,45.13218]
[1743768464877,0.00843359,1779.0,1778.9,41.92438]
[1743768465078,0.00843359,1779.0,1778.9,1.12438]
[1743768465377,3.34260359,1779.0,1778.7,0.00843359]
[1743768465581,4.06849359,1779.0,1778.9,1.12438]
[1743768465782,2.94413359,1779.0,1778.9,1.12438]
[1743768465986,4.06844359,1779.0,1778.9,1.12438]
[1743768466183,2.94413359,1779.0,1778.9,1.12438]
[1743768466684,4.06844359,1779.0,1778.9,1.12438]
[1743768466878,2.94413359,1779.0,1778.9,1.12438]
[1743768467081,1.52213359,1779.0,1778.9,4.33218]
[1743768467685,1.52213359,1779.0,1778.9,1.12438]
[1743768468285,0.00843359,1779.0,1778.9,8.65018]
[1743768468783,0.00843359,1779.0,1778.9,5.44238]
[1743768469086,1.48193359,1779.0,1778.9,5.44238]
[1743768469585,1.48193359,1779.0,1778.9,8.65018]
[1743768469981,1.48193359,1779.0,1778.9,5.44238]
[1743768470181,1.48193359,1779.0,1778.9,1.12438]
[1743768470886,1.486,1779.3,1779.2,1.12419]
[1743768471187,2.61012,1779.3,1779.2,1.12419]
[1743768471793,1.12423,1779.2,1779.1,1.12423]
[1743768472182,1.12433,1779.0,1778.9,1.12432]
[1743768472485,1.12429,1779.1,1779.0,1.12429]
[1743768473186,1.12421,1779.2,1779.1,1.12419]
[1743768473389,1.12426,1779.1,1779.0,1.12425]
[1743768473996,4.70223359,1779.3,1779.1,1.12419]
[1743768474291,1.12424,1779.2,1779.1,1.12423]
[1743768474994,1.12428,1779.1,1779.0,1.12426]
[1743768475285,1.12444,1778.9,1778.8,1.12442]
[1743768476283,4.33223,1778.9,1778.8,1.12444]
[1743768476490,5.05393,1778.9,1778.8,1.12444]
[1743768476700,5.05393,1778.9,1778.7,1.13288359]
[1743768476990,2.62264,1778.8,1778.7,1.13293359]
[1743768477190,3.31764,1778.8,1778.7,0.00843359]
[1743768481594,3.31764,1778.8,1778.7,1.13293359]
[1743768481890,1.4982,1778.8,1778.7,1.13293359]
[1743768482196,1.12431,1779.0,1778.9,1.12438]
[1743768482497,1.4438,1779.1,1779.0,1.12431]
[1743768482695,1.4438,1779.1,1779.0,4.33211]
[1743768482895,0.00843359,1779.3,1779.2,1.12419]
[1743768483201,1.12385,1779.8,1779.7,1.12385]
[1743768483391,4.6577,1779.9,1779.6,1.1239]
[1743768483592,7.46707,1779.9,1779.6,1.12391]
[1743768483898,4.6577,1779.9,1779.5,2.80994]
[1743768484099,1.12384,1779.8,1779.7,1.12384]
[1743768484297,1.12384,1779.8,1779.5,2.80994]
[1743768484298,1.1239,1779.7,1779.6,1.1239]
[1743768485496,1.435,1779.8,1779.7,1.12387]
[1743768485798,0.00843359,1779.9,1779.8,1.12381]
[1743768485994,1.13217359,1779.9,1779.7,6.93553]
[1743768486597,1.13217359,1779.9,1779.7,6.93551]
[1743768486992,1.13223359,1779.9,1779.7,6.93551]
[1743768487199,1.4876,1779.8,1779.7,6.93551]
[1743768487899,1.12393,1779.6,1779.5,1.13239359]
[1743768488093,1.12393,1779.6,1779.5,1.13243359]
[1743768488600,2.61153,1779.6,1779.5,1.13243359]
[1743768488997,1.4876,1779.6,1779.5,1.13243359]
[1743768489300,1.4876,1779.6,1779.5,1.58536822]
[1743768489499,0.00843359,1779.9,1779.5,4.28533359]
[1743768489703,1.12393,1779.6,1779.5,1.13239359]
[1743768489997,1.12391,1779.7,1779.6,1.1239]
[1743768490401,2.65501,1779.7,1779.6,1.1239]
[1743768491005,1.12393,1779.6,1779.5,1.13239359]
[1743768491191,2.65503,1779.6,1779.5,1.13243359]
[1743768491396,3.36803,1779.6,1779.5,0.00843359]
[1743768491597,2.2441,1779.6,1779.5,1.13243359]
[1743768492599,3.36803,1779.6,1779.5,1.13243359]
[1743768492796,2.2441,1779.6,1779.5,1.13243359]
[1743768492992,3.2078,1779.8,1779.5,2.60793359]
[1743768493202,1.4429,1779.8,1779.7,1.12387]
[1743768493700,2.56671,1779.8,1779.7,1.12387]
[1743768493999,1.4429,1779.8,1779.5,4.69173359]
[1743768494202,1.4429,1779.8,1779.6,1.1239]
[1743768494203,1.12389,1779.7,1779.6,1.1239]
[1743768494700,1.12393,1779.6,1779.5,4.34021359]
[1743768495202,4.33173,1779.6,1779.5,0.00843359]
[1743768495397,5.77463,1779.6,1779.5,0.00843359]
[1743768496106,5.77463,1779.6,1778.9,35.41]
[1743768496107,2.81034,1779.3,1778.9,35.41]
[1743768496396,3.2078,1779.0,1778.5,8.2189]
[1743768496600,1.12456,1778.6,1778.4,36.53466]
[1743768496798,7.5208,1779.0,1778.4,36.53466]
[1743768497000,1.12452,1778.7,1778.6,1.12453]
[1743768497299,1.12456,1778.6,1778.5,2.58481359]
[1743768497505,1.12456,1778.6,1778.5,0.00843359]
[1743768498004,1.12456,1778.6,1778.5,1.13306359]
[1743768498208,1.3907,1778.7,1778.6,1.12456]
[1743768498504,0.00843359,1778.8,1778.7,1.1245]
[1743768498905,1.12431,1779.0,1778.7,4.6596]
[1743768499100,1.12431,1779.0,1778.8,1.12442]
[1743768499294,3.9148,1779.2,1778.9,1.12434]
[1743768499499,1.398,1779.1,1778.7,4.6596]
[1743768499701,0.7645,1779.3,1778.9,2.81086]
[1743768499904,2.1625,1779.3,1779.2,1.12419]
[1743768500096,0.00843359,1779.3,1779.2,8.64499]
[1743768500303,3.59e-06,1779.3,1779.2,11.14499]
[1743768500507,3.59e-06,1779.3,1779.2,46.56199]
[1743768500699,3.59e-06,1779.3,1779.2,52.52799]
[1743768500895,3.59e-06,1779.3,1779.2,93.32799]
[1743768503600,1.42430359,1779.6,1779.5,1.124]
[1743768503803,2.54823359,1779.6,1779.5,1.124]
[1743768504006,1.42430359,1779.6,1779.5,1.124]
[1743768504707,6.74847,1779.9,1779.5,1.124]
[1743768504708,0.7313,1779.9,1779.5,8.2087]
[1743768504909,1.86859,1780.2,1779.8,2.80952]
[1743768505108,1.86859,1780.2,1780.1,1.12362]
[1743768505109,1.84889109,1780.2,1780.1,1.12362]
[1743768505408,1.12352,1780.3,1780.2,1.12355]
[1743768505609,0.00843359,1780.3,1780.2,2.61815]
[1743768505905,1.12355,1780.2,1780.1,3.2078]
[1743768506103,0.00843359,1780.3,1779.9,51.079]
[1743768506410,1.12368,1780.0,1779.9,5.966]
[1743768506912,1.12374,1779.9,1779.8,35.414]
[1743768507111,2.54304,1779.9,1779.8,35.39430109]
[1743768507306,1.4193,1779.9,1779.8,39.72591109]
[1743768507513,1.4193,1779.9,1779.8,36.51811109]
[1743768507811,0.702,1780.1,1780.0,1.12368]
[1743768508107,3.22522109,1780.1,1780.0,1.12368]
[1743768508302,1.12368,1780.0,1779.9,1.1237]
[1743768508503,1.12374,1779.9,1779.8,36.97541543]
[1743768508709,1.12374,1779.9,1779.8,35.37460218]
[1743768509007,1.12387,1779.7,1779.6,1.12389]
[1743768509209,8.11845109,1780.1,1779.7,1.12387]
[1743768509210,1.3942,1779.8,1779.7,1.12387]
[1743768509706,1.12393,1779.7,1779.5,2.52910359]
[1743768509905,2.51813,1779.6,1779.5,0.00843359]
[1743768510208,5.72593,1779.6,1779.5,0.00843359]
[1743768510409,1.12421,1779.2,1779.1,1.12424]
[1743768510607,8.913,1779.6,1779.0,35.407]
[1743768510812,1.1241,1779.4,1779.3,1.12412]
[1743768511000,8.913,1779.6,1779.4,1.12404]
[1743768511204,1.12402,1779.5,1779.4,1.12404]
[1743768511508,1.4639,1779.5,1779.4,8.64284]
[1743768511710,0.00843359,1779.6,1779.5,1.124]
[1743768511908,0.7692,1780.1,1780.0,1.12368]
[1743768512102,1.4639,1780.3,1780.2,1.12355]
[1743768512509,0.7692,1780.5,1780.4,1.12343]
[1743768512818,1.12343,1780.4,1780.3,0.01969891]
[1743768513013,1.12343,1780.4,1780.3,0.0281325]
[1743768513310,6.81153109,1780.4,1780.3,0.00843359]
[1743768513712,8.27543109,1780.4,1780.3,0.00843359]
[1743768514216,2.80874,1780.3,1779.4,10.276]
[1743768514403,3.2078,1779.7,1779.3,4.6655]
[1743768514603,1.12401,1779.5,1779.3,2.58179]
[1743768514909,1.4858,1779.4,1779.3,4.33189]
[1743768515212,1.12412,1779.3,1779.2,1.12416]
[1743768515415,1.4858,1779.4,1779.3,1.12412]
[1743768515626,0.00843359,1779.5,1779.4,1.12406]
[1743768515911,3.2078,1780.0,1779.5,2.80991]
[1743768516113,1.4858,1779.9,1779.8,1.12381]
[1743768516314,3.2078,1780.4,1779.8,8.57707]
[1743768516511,1.12356,1780.2,1780.1,1.12358]
[1743768516710,1.4858,1780.3,1779.8,6.4941]
[1743768517012,1.12365,1780.1,1780.0,1.12366]
[1743768517407,1.5047,1780.1,1780.0,1.12366]
[1743768517610,2.62832,1780.1,1780.0,1.12366]
[1743768517809,1.5047,1780.1,1780.0,1.12366]
[1743768518215,0.00843359,1780.2,1780.1,1.12362]
[1743768518516,0.00843359,1780.2,1780.1,2.56272]
[1743768518813,1.51313359,1780.2,1780.1,2.56272]
[1743768519209,0.00843359,1780.2,1780.1,2.56272]
[1743768519408,0.00843359,1780.2,1780.1,9.37272]
[1743768519611,3.2078,1780.9,1780.3,2.80865]
[1743768519913,1.12334,1780.6,1780.5,1.12335]
[1743768520312,1.12336,1780.5,1780.4,4.309]
[1743768520504,2.52396,1780.5,1780.4,4.309]
[1743768520708,1.4006,1780.5,1780.2,5.7016]
[1743768521004,1.12343,1780.4,1780.3,0.00843359]
[1743768521513,4.33123,1780.4,1780.3,0.00843359]
[1743768521811,1.12387,1779.8,1779.6,4.3317]
[1743768522011,1.4006,1779.7,1779.4,1.3926]
[1743768522322,1.12413,1779.3,1779.1,17.4501342]
[1743768522612,1.12411,1779.4,1779.3,1.12411]
[1743768522809,1.13254359,1779.4,1779.2,1.12413]
[1743768523014,0.00843359,1779.4,1779.3,1.12412]
[1743768524211,0.00843359,1779.4,1779.2,1.3926]
[1743768524405,1.12412,1779.3,1779.2,1.12414]
[1743768524610,3.21623359,1779.4,1779.1,1.12423]
[1743768524611,1.12422,1779.2,1779.1,1.12423]
[1743768524811,1.12425,1779.1,1779.0,0.00843359]
[1743768526218,1.12425,1779.1,1778.6,45.44361]
[1743768526219,1.1245,1778.7,1778.6,35.403]
[1743768526614,3.2078,1779.0,1778.6,35.403]
[1743768526917,1.1245,1778.7,1778.6,35.403]
[1743768527418,6.01861,1779.0,1778.6,36.52754]
[1743768527419,6.0186,1779.0,1778.6,36.52754]
[1743768527621,6.0186,1779.0,1778.6,35.403]
[1743768527820,1.1245,1778.7,1778.6,35.403]
[1743768528214,1.1245,1778.7,1778.5,0.00843359]
[1743768528215,1.12456,1778.6,1778.5,0.00843359]
[1743768528524,1.1245,1778.7,1778.5,1.13306359]
[1743768528718,1.12456,1778.6,1778.5,0.00843359]
[1743768529114,1.12456,1778.6,1778.5,1.13306359]
[1743768529410,0.7661,1778.8,1778.7,1.1245]
[1743768529615,1.89055,1778.8,1778.6,1.503]
[1743768530321,0.7661,1778.8,1778.7,1.1245]
[1743768530522,1.89054,1778.8,1778.7,1.1245]
[1743768530709,1.1245,1778.7,1778.6,1.503]
[1743768530913,0.7661,1778.8,1778.6,1.503]
[1743768530914,1.89056,1778.8,1778.6,1.503]
[1743768531315,3.2078,1779.2,1778.6,1.503]
[1743768531520,3.9451,1779.2,1779.0,1.12428]
[1743768531717,1.12425,1779.1,1779.0,1.12428]
[1743768531913,1.12425,1779.1,1778.7,10.32806]
[1743768531914,0.00843359,1779.4,1778.9,6.01868]
[1743768532118,3.95353359,1779.4,1779.3,1.12412]
[1743768532319,1.86979359,1779.4,1779.3,1.12412]
[1743768532818,1.86979359,1779.4,1779.0,5.812]
[1743768533019,0.74573359,1779.4,1779.3,1.12412]
[1743768533523,1.86983359,1779.4,1779.2,2.63144]
[1743768533718,1.86983359,1779.4,1779.3,1.12412]
[1743768533912,0.74573359,1779.4,1779.3,1.12412]
[1743768534117,1.86984359,1779.4,1779.2,2.63145]
[1743768534317,0.00843359,1779.4,1779.3,1.12412]
[1743768534622,1.12412,1779.3,1779.2,1.5073]
[1743768534813,1.13253359,1779.4,1779.2,2.63145]
[1743768535017,0.00843359,1779.4,1779.3,1.12412]
[1743768535621,0.00843359,1779.4,1779.3,5.43312]
[1743768536120,1.13249359,1779.4,1779.3,5.43312]
[1743768536322,0.00843359,1779.4,1779.3,5.43312]
[1743768536719,1e-08,1779.4,1779.3,7.93312]
[1743768537525,1e-08,1779.4,1779.3,46.23312]
[1743768538625,1e-08,1779.4,1779.3,5.43312]
[1743768539222,1e-08,1779.4,1779.3,7.93312]
[1743768540418,1e-08,1779.4,1779.3,48.73312]
[1743768541829,1e-08,1779.4,1779.3,5.43312]
[1743768542029,1e-08,1779.4,1779.3,1.12412]
[1743768542226,1e-08,1779.4,1779.3,5.43212]
[1743768542819,1.43290001,1779.4,1779.3,5.43212]
[1743768543219,1e-08,1779.4,1779.3,5.43212]
[1743768543626,1e-08,1779.4,1779.3,7.93212]
[1743768543828,1.4329,1779.9,1779.8,1.12381]
[1743768544131,1.4329,1779.9,1779.7,6.92692]
[1743768544317,1.12381,1779.8,1779.7,1.12382]
[1743768545622,1.44133359,1779.9,1779.8,1.12381]
[1743768545918,2.56507359,1779.9,1779.8,1.12381]
[1743768546122,1.44133359,1779.9,1779.8,1.12381]
[1743768546430,3.59e-06,1779.9,1779.8,5.88567889]
[1743768546818,3.59e-06,1779.9,1779.8,8.38567889]
[1743768547229,3.59e-06,1779.9,1779.8,5.88567889]
[1743768547725,3.59e-06,1779.9,1779.8,1.12381]
[1743768547928,2.64214359,1779.9,1779.8,1.12381]
[1743768548431,1.12386,1779.8,1779.7,1.12383]
[1743768548626,2.2664,1779.8,1779.7,1.12383]
[1743768548828,3.39021,1779.8,1779.7,1.12383]
[1743768549224,1.12387,1779.7,1779.6,42.50732359]
[1743768549423,5.85007,1779.7,1779.6,1e-08]
[1743768549627,8.35007,1779.7,1779.6,1e-08]
[1743768552228,4.7262,1779.7,1779.6,1e-08]
[1743768552529,1.5184,1779.7,1779.6,1.12393001]
[1743768552732,2.64227,1779.7,1779.6,1e-08]
[1743768552924,5.14227,1779.7,1779.6,1e-08]
[1743768556329,2.81096,1778.9,1778.5,13.4798]
[1743768556533,1.12456,1778.6,1778.5,2.61711]
[1743768556836,2.1235,1778.8,1778.6,1.12456]
[1743768557037,0.7309,1779.0,1778.7,1.1245]
[1743768557233,1.12444,1778.8,1778.7,2.63986]
[1743768557538,1.1245,1778.7,1778.6,40.80843359]
[1743768558332,3.2561,1778.7,1778.6,0.00843359]
[1743768561637,1.12447,1778.8,1778.6,0.00843359]
[1743768561932,2.57522359,1778.9,1778.8,1.12444]
[1743768562130,0.00843359,1778.9,1778.8,41.92444]
[1743768562439,1.13281359,1778.9,1778.8,40.8]
[1743768562641,4.34061359,1778.9,1778.8,40.8]
[1743768563440,1.1245,1778.7,1778.6,10.28043359]
[1743768563739,1.1245,1778.7,1778.6,51.08043359]
[1743768563928,1.1245,1778.7,1778.6,46.77443359]
[1743768564239,2.54158,1778.8,1778.6,46.77443359]
[1743768564440,1.1245,1778.7,1778.6,47.89895359]
[1743768564936,1.1245,1778.7,1778.6,46.77443359]
[1743768565142,1.1245,1778.7,1778.6,0.00843359]
[1743768565839,1.4171,1778.8,1778.7,1.1245]
[1743768566138,1.12419,1779.3,1779.1,1.12419]
[1743768566342,6.01782,1779.5,1778.8,2.8111]
[1743768566343,1.12425,1779.1,1779.0,5.43027]
[1743768566543,1.12425,1779.1,1779.0,45.106]
[1743768567037,1.5111,1779.2,1779.0,45.106]
[1743768567238,1.51672605,1779.2,1779.1,1.12425]
[1743768567437,4.32728605,1779.2,1778.8,14.9351]
[1743768567631,1.12431,1779.0,1778.9,1.4737]
[1743768568642,1.51672605,1779.2,1779.1,1.12425]
[1743768568937,0.00562605,1779.2,1779.1,1.12425]
[1743768569141,0.00562605,1779.2,1779.1,7.63875]
[1743768569643,1.5269,1779.5,1779.4,1.12406]
[1743768569942,1.12405,1779.5,1779.4,5.43004]
[1743768570633,1.12405,1779.5,1779.4,6.92024]
[1743768570830,1.12405,1779.5,1779.4,5.7962]
[1743768571036,1.5269,1779.7,1779.4,5.7962]
[1743768571340,1.124,1779.5,1779.4,6.9202]
[1743768571536,2.80994,1779.6,1779.2,5.966]
[1743768571841,1.12412,1779.3,1779.2,7.4562]
[1743768572034,1.12412,1779.3,1779.2,1.4902]
[1743768572235,1.1241,1779.4,1779.3,1.12412]
[1743768572540,1.124,1779.5,1779.4,1.12402]
[1743768572743,1.12398,1779.6,1779.5,1.12398]
[1743768573140,2.51432,1779.7,1779.6,1.12393]
[1743768573339,1.12392,1779.7,1779.6,1.12393]
[1743768573543,1.124,1779.5,1779.4,1.4581]
[1743768574130,1.3904,1779.6,1779.4,1.4581]
[1743768574336,1.12395,1779.7,1779.6,1.1239]
[1743768574737,1.12393,1779.6,1779.5,1.13237359]
[1743768574943,1.12393,1779.6,1779.5,2.59047359]
[1743768575144,1.12393,1779.6,1779.5,1.13243359]
[1743768576033,1.12393,1779.6,1779.5,0.00843359]
[1743768576545,6.83173,1779.6,1779.5,0.00843359]
[1743768576846,7.53523,1779.6,1779.5,0.00843359]
[1743768577740,1.12419,1779.2,1779.1,38.06241]
[1743768577933,1.12419,1779.2,1779.1,36.9382]
[1743768578135,2.8106,1779.2,1778.8,4.304]
[1743768578334,1.4513,1779.1,1778.8,5.42838]
[1743768578539,1.4513,1779.1,1778.7,4.6923]
[1743768578540,1.12437,1779.0,1778.9,1.12437]
[1743768578942,1.12433,1779.0,1778.9,1.12433]
[1743768579440,1.45973358,1779.1,1778.8,1.13282359]
[1743768579441,1.12438,1778.9,1778.8,1.13282359]
[1743768579648,4.66753358,1779.1,1778.8,1.49293359]
[1743768579843,1.45973358,1779.1,1778.9,1.12433]
[1743768580041,1.13268358,1779.1,1779.0,2.60881]
[1743768580235,1.13268358,1779.1,1779.0,1.4845]
[1743768580440,1.12438,1778.9,1778.8,4.31243359]
[1743768580642,1.12438,1778.9,1778.8,5.79693359]
[1743768580846,1.12438,1778.9,1778.8,6.92137359]
[1743768581346,1.12438,1778.9,1778.8,5.79693359]
[1743768581646,1.12436,1779.0,1778.9,1.12438]
[1743768581847,1.12436,1779.0,1778.9,2.52368]
[1743768582049,1.12436,1779.0,1778.9,1.3993]
[1743768582441,1.12438,1778.9,1778.8,4.31243359]
[1743768582841,1.12438,1778.9,1778.8,0.00843359]
[1743768583944,1.12456,1778.6,1778.5,35.415]
[1743768584136,1.12456,1778.6,1777.9,39.06982695]
[1743768584137,1.12494,1778.0,1777.9,39.06982695]
[1743768584341,1.12494,1778.0,1777.9,36.8475]
[1743768584543,3.2078,1778.3,1777.9,36.8475]
[1743768584747,1.12494,1778.0,1777.9,36.8475]
[1743768585442,1.42583359,1778.1,1777.9,36.8475]
[1743768585642,1.12494,1778.0,1777.9,37.97246]
[1743768586252,1.12494,1778.0,1777.9,37.97251]
[1743768586551,1.12494,1778.0,1777.9,36.8475]
[1743768586937,1.12494,1778.0,1777.9,37.97251]
[1743768587141,0.00843359,1778.1,1778.0,1.12494]
[1743768587343,0.00843359,1778.1,1778.0,10.10824]
[1743768587644,0.00843359,1778.1,1778.0,12.60824]
[1743768587838,3.59e-06,1778.1,1778.0,12.60824]
[1743768588048,1.4679,1778.6,1778.5,1.12457]
[1743768588242,1.12454,1778.7,1778.6,1.12454]
[1743768588446,1.1245,1778.7,1778.6,2.59704]
[1743768588645,3.33429,1778.8,1778.7,1.1245]
[1743768588947,1.12444,1778.8,1778.7,41.9245]
[1743768589248,1.12444,1778.8,1778.7,40.8]
[1743768589950,1.12444,1778.8,1778.7,41.9245]
[1743768590145,0.00843358,1778.9,1778.8,1.12444]
[1743768590338,0.00843358,1778.9,1778.8,6.90744]
[1743768590547,1.13281358,1778.9,1778.8,6.90744]
[1743768590951,0.00843358,1778.9,1778.8,6.90744]
[1743768591150,1.13281358,1778.9,1778.8,6.90744]
[1743768591352,0.00843358,1778.9,1778.8,6.90744]
[1743768591551,1.13281358,1778.9,1778.8,6.90744]
[1743768591751,0.00843358,1778.9,1778.8,4.304]
[1743768591951,1.12463,1778.6,1778.5,5.42862]
[1743768592442,1.5283,1778.8,1778.5,45.104]
[1743768592644,1.5283,1778.8,1778.7,1.1245]
[1743768592844,1.1245,1778.7,1778.6,5.81132]
[1743768593043,2.65278,1778.8,1778.7,1.1245]
[1743768593240,2.65278,1778.8,1778.7,2.6035]
[1743768593451,2.65278,1778.8,1778.7,1.479]
[1743768593851,1.1245,1778.7,1778.6,1.1245]
[1743768594053,2.5294,1778.7,1778.6,1.1245]
[1743768594753,1.12456,1778.6,1778.5,4.304]
[1743768594954,5.3223,1778.6,1778.2,4.6716]
[1743768595156,1.12475,1778.3,1778.2,1.12479]
[1743768595347,1.12475,1778.3,1778.2,5.42779]
[1743768595948,1.12475,1778.3,1778.2,4.303]
[1743768596452,2.52964,1778.4,1778.2,4.303]
[1743768596652,1.12475,1778.3,1778.2,4.303]
[1743768596857,2.51525,1778.3,1778.2,5.42777]
[1743768597057,1.3905,1778.3,1778.2,5.42777]
[1743768597555,2.51525,1778.3,1778.2,5.42777]
[1743768597755,1.3905,1778.3,1778.2,5.42777]
[1743768597957,5.75839,1778.6,1778.2,7.11493]
[1743768598152,2.55059,1778.6,1778.5,1.12463]
[1743768598352,1.12467,1778.5,1778.4,1.12464]
[1743768599155,1.8342,1778.6,1778.5,1.12463]
[1743768599345,2.251,1778.6,1778.5,8.63543]
[1743768599549,1.5414,1778.8,1778.7,1.1245]
[1743768599753,2.66584,1778.8,1778.7,1.1245]
[1743768600459,0.00843358,1778.9,1778.8,1.12444]
[1743768600658,2.67421358,1778.9,1778.8,5.42744]
[1743768601157,1.54983358,1778.9,1778.8,5.42744]
[1743768601656,2.67421358,1778.9,1778.8,5.42744]
[1743768601953,7.56870358,1778.9,1778.6,41.92454]
[1743768602155,1.12456,1778.6,1778.5,11.39357]
[1743768602352,1.12456,1778.6,1778.5,7.09057]
[1743768602549,7.56870358,1778.9,1778.8,1.12444]
[1743768602550,0.00843358,1778.9,1778.8,1.12444]
[1743768602960,0.00843358,1778.9,1778.7,5.42746]
[1743768603155,1.12444,1778.8,1778.7,5.42746]
[1743768604251,4.33224,1778.8,1778.7,4.303]
[1743768604457,1.12473,1778.4,1778.3,1.12467]
[1743768605158,1.12475,1778.3,1778.2,11.39277]
[1743768605456,1.12488,1778.1,1778.0,8.63468]
[1743768605655,1.12488,1778.1,1778.0,3.2078]
[1743768605851,1.12494,1778.0,1777.9,35.417]
[1743768606058,1.12501,1777.9,1777.8,0.00843359]
[1743768606356,1.1252,1777.6,1777.5,8.77093926]
[1743768606656,1.12513,1777.7,1777.5,8.71063817]
[1743768606848,1.3919,1777.6,1777.5,9.83588817]
[1743768607451,0.7216,1778.0,1777.9,1.12501]
[1743768607651,1.3919,1778.2,1778.1,1.12488]
[1743768607851,3.9551,1778.5,1778.1,4.302]
[1743768608056,1.13318359,1778.3,1778.1,5.42685]
[1743768608251,1.3919,1778.2,1778.1,5.42685]
[1743768608450,1.3919,1778.2,1778.1,46.22685]
[1743768608659,1.3919,1778.2,1778.1,45.102]
[1743768609157,2.51672,1778.2,1778.1,46.22688]
[1743768609356,1.3919,1778.2,1778.1,46.22688]
[1743768609851,0.00843359,1778.3,1778.2,1.12482]
[1743768610053,1e-08,1778.3,1778.2,6.53172]
[1743768610259,1.5268,1778.8,1778.7,1.1245]
[1743768610455,2.65124,1778.8,1778.7,4.302]
[1743768610660,1.12465,1778.5,1778.4,1.12467]